bitfinex/quotes_ETHUSD_20250107
["timestamp","ask_amount","ask_price","bid_price","bid_amount"]
[1736291124446,0.8078,3383.7,3382.9,0.0075]
[1736291125239,2.95509,3384.0,3383.1,0.0075]
[1736291125469,2.03921455,3384.1,3383.3,0.0075]
[1736291125676,1.23141455,3384.1,3383.7,0.55]
[1736291125861,1.23141455,3384.1,3383.9,0.0075]
[1736291126057,1.23141455,3384.6,3384.2,0.0075]
[1736291126252,1.23141455,3384.6,3384.5,3.51214]
[1736291128057,0.8078,3385.7,3384.7,0.0075]
[1736291128261,0.376158,3385.4,3384.7,0.0075]
[1736291129348,0.376158,3385.4,3384.4,0.7947]
[1736291129568,2.95405,3385.2,3384.1,2.95491]
[1736291129755,2.95438,3384.9,3384.0,0.8109]
[1736291130057,2.95439,3384.8,3383.8,2.95517]
[1736291130277,0.7548,3385.1,3383.6,0.7516]
[1736291130278,2.95422,3385.0,3383.9,2.98470632]
[1736291130480,2.95432,3384.9,3383.9,2.95516]
[1736291131382,2.95432,3384.9,3384.0,0.0075]
[1736291132097,2.95432,3384.9,3384.0,0.03704761]
[1736291132272,0.670881,3385.0,3384.3,0.0075]
[1736291132469,0.7548,3385.1,3384.3,0.0075]
[1736291132701,2.95421,3385.0,3384.3,0.0075]
[1736291133285,0.7548,3385.1,3384.0,0.0075]
[1736291133484,3.0,3384.8,3384.0,0.0075]
[1736291133883,3.0,3384.8,3383.6,0.7516]
[1736291134104,0.7602,3384.4,3383.2,0.7911]
[1736291134480,0.7602,3384.4,3382.8,2.01990775]
[1736291134682,0.7602,3383.5,3382.8,2.01990775]
[1736291135018,0.7602,3383.5,3382.8,3.74718]
[1736291135325,0.7565,3384.3,3382.9,0.02955681]
[1736291135515,0.7565,3384.3,3382.8,0.7911]
[1736291135516,2.95538,3383.7,3382.8,0.7911]
[1736291135712,0.7565,3384.3,3383.1,2.95585]
[1736291135917,3.7565,3384.3,3383.2,0.02955482]
[1736291136114,3.71135,3384.3,3383.3,0.0075]
[1736291136427,0.7565,3384.3,3383.3,0.0075]
[1736291136640,0.37565,3384.2,3383.3,0.0075]
[1736291136802,2.95532,3383.8,3382.8,0.7911]
[1736291137007,2.95532,3383.8,3382.9,0.0075]
[1736291137688,2.95532,3383.8,3382.9,0.03705692]
[1736291138315,2.95535,3383.7,3382.9,0.0075]
[1736291138503,0.295535,3383.6,3382.9,0.0075]
[1736291139117,0.08405983,3383.5,3382.9,0.0075]
[1736291141306,0.08405983,3383.5,3382.9,0.03705689]
[1736291141817,0.08405983,3383.5,3382.9,0.0075]
[1736291142247,0.08405983,3383.5,3382.9,0.03705688]
[1736291142946,0.08405983,3383.5,3383.1,0.0075]
[1736291143106,0.08405983,3383.5,3383.1,2.99289353]
[1736291143311,0.37565,3384.2,3383.1,2.96334]
[1736291143523,0.0830374,3383.4,3383.1,0.0075]
[1736291143722,0.0830374,3383.4,3382.8,0.7911]
[1736291143890,3.0,3383.9,3383.1,0.5575]
[1736291144093,0.37565,3384.2,3383.5,0.5575]
[1736291144445,1.23141455,3384.5,3383.9,0.0075]
[1736291144616,0.08269363,3384.1,3383.9,0.0075]
[1736291144813,1.23141455,3384.5,3383.9,0.0075]
[1736291145331,0.08269363,3384.4,3383.8,0.0075]
[1736291145732,2.95482,3384.3,3383.4,3.74489]
[1736291146130,0.08285693,3384.2,3383.5,0.0075]
[1736291146330,3.03776693,3384.2,3383.5,0.0075]
[1736291146536,0.08285693,3384.2,3383.5,0.0075]
[1736291146736,0.08285693,3384.2,3383.7,0.0075]
[1736291146966,0.3,3384.7,3383.7,0.0075]
[1736291147178,2.95532,3383.8,3383.0,0.7893]
[1736291147465,3.33375033,3383.7,3383.0,0.7893]
[1736291147670,2.95543,3383.6,3383.1,0.0075]
[1736291148327,0.08284833,3383.5,3383.1,0.0075]
[1736291149524,2.95546,3383.6,3383.1,0.0075]
[1736291149749,0.08284833,3383.4,3383.1,0.0075]
[1736291149972,2.95527,3383.8,3383.1,0.0075]
[1736291150123,0.08284833,3383.3,3383.1,0.0075]
[1736291150473,0.08284833,3383.2,3383.1,0.0075]
[1736291150847,3.295527,3383.7,3382.5,0.7814]
[1736291151159,3.295527,3383.7,3382.1,0.7814]
[1736291151160,2.95613,3382.8,3382.1,0.7814]
[1736291151527,3.03835489,3382.7,3382.2,0.0075]
[1736291152253,0.08213489,3382.7,3382.2,0.0075]
[1736291152785,3.0,3382.4,3381.4,0.7931]
[1736291153005,3.72909,3382.3,3381.4,0.7931]
[1736291153187,0.08171358,3382.2,3381.5,0.0075]
[1736291153396,2.95674,3382.1,3381.4,0.7931]
[1736291153556,3.42400752,3382.1,3381.2,1.22880775]
[1736291153760,2.95707,3381.8,3381.2,1.22880775]
[1736291153965,2.95707,3381.8,3381.1,0.7931]
[1736291154386,0.08154159,3381.7,3381.1,0.7931]
[1736291155059,0.08154159,3381.7,3381.2,0.0075]
[1736291155505,3.42782211,3382.0,3381.2,0.0075]
[1736291155705,0.08154159,3381.6,3381.2,0.0075]
[1736291155906,0.68223296,3381.9,3381.2,0.0075]
[1736291156099,0.08154159,3381.5,3381.2,0.0075]
[1736291156307,0.68223296,3381.9,3381.2,0.0075]
[1736291156509,0.08154159,3381.4,3381.2,0.0075]
[1736291156808,3.71043626,3381.8,3381.2,0.0075]
[1736291157380,0.08154159,3381.7,3381.2,0.0075]
[1736291157709,0.08154159,3381.7,3381.2,2.99458376]
[1736291157919,1.23141455,3382.7,3381.7,0.7804]
[1736291158082,2.95641,3382.5,3381.7,0.7804]
[1736291158412,3.0,3382.4,3381.7,0.7804]
[1736291159498,3.42400752,3382.5,3381.9,0.0075]
[1736291159681,3.0,3382.2,3381.9,0.0075]
[1736291160022,3.8128,3382.4,3381.9,0.0075]
[1736291160312,3.8128,3382.4,3381.2,0.0075]
[1736291160616,2.95736,3381.4,3380.7,0.813]
[1736291160822,3.8128,3381.6,3380.3,0.813]
[1736291160823,2.95753,3381.2,3380.3,0.813]
[1736291161114,2.95764,3381.1,3380.3,0.813]
[1736291161410,3.7789,3380.8,3380.1,0.59648758]
[1736291161611,2.95805,3380.7,3380.0,1.98960775]
[1736291162071,2.95805,3380.7,3380.1,0.0075]
[1736291162409,3.97414575,3380.7,3380.1,0.0075]
[1736291162723,3.97414575,3380.7,3380.0,0.7608]
[1736291163269,3.97414575,3380.7,3380.1,0.0075]
[1736291164314,1.01609575,3380.7,3380.1,0.0075]
[1736291164516,3.77996033,3380.6,3380.1,0.0075]
[1736291164721,3.77996033,3380.6,3379.6,3.51639]
[1736291165968,3.77996033,3380.6,3379.6,0.5575]
[1736291166173,0.7783,3380.3,3379.3,0.1701137]
[1736291166376,3.7367,3380.3,3379.3,0.1701137]
[1736291166641,3.0,3380.0,3379.3,0.1701137]
[1736291167077,2.95897,3379.6,3379.3,0.1701137]
[1736291167274,3.73727,3379.6,3379.3,0.1701137]
[1736291167675,2.9591,3379.4,3379.3,0.1701137]
[1736291167946,6.73724,3379.6,3379.3,0.1701137]
[1736291168073,1.03862475,3379.5,3379.3,0.1701137]
[1736291168420,1.11202972,3379.5,3379.3,0.1701137]
[1736291168601,4.07106972,3379.5,3379.3,0.1701137]
[1736291170009,2.9591,3379.4,3379.3,0.1701137]
[1736291170526,0.07275828,3379.4,3379.3,0.1701137]
[1736291170674,0.07275828,3379.4,3379.3,0.1776137]
[1736291170879,2.95866,3379.9,3379.4,0.0075]
[1736291171212,3.69725675,3379.9,3379.4,0.0075]
[1736291171397,3.7783,3380.0,3379.4,0.0075]
[1736291171931,4.22490752,3380.5,3379.6,0.0075]
[1736291172129,4.22490752,3380.9,3380.0,0.0075]
[1736291172330,0.8009,3380.9,3379.8,0.0075]
[1736291172532,4.22490752,3380.9,3379.5,0.7742]
[1736291172746,2.95852,3380.1,3379.6,0.0075]
[1736291172904,4.22490752,3380.9,3379.6,0.03708937]
[1736291173108,2.95771,3381.0,3380.1,0.7626]
[1736291173307,3.76649335,3381.0,3380.1,0.7626]
[1736291173710,0.8041,3381.3,3380.4,0.0075]
[1736291174006,3.0,3381.2,3380.4,0.0075]
[1736291174205,3.76161,3381.3,3380.4,0.0075]
[1736291174606,2.95753,3381.2,3380.3,0.0075]
[1736291175002,4.22810752,3381.3,3380.3,0.0075]
[1736291175337,4.22810752,3381.3,3380.2,0.0075]
[1736291175338,3.0,3380.9,3380.2,0.0075]
[1736291175744,2.95721,3381.6,3380.4,0.0075]
[1736291175958,3.42400752,3382.1,3381.1,2.95759]
[1736291176119,0.7939,3382.3,3381.5,0.0075]
[1736291176303,0.225,3382.4,3381.7,0.0075]
[1736291176737,3.18149,3382.4,3381.7,0.0075]
[1736291177053,3.579029,3382.4,3381.5,0.0075]
[1736291177259,0.225,3382.4,3381.5,2.96474]
[1736291178244,0.225,3382.4,3381.7,0.0075]
[1736291178655,3.18149,3382.4,3381.7,0.0075]
[1736291178867,2.95674,3382.1,3381.4,0.8178]
[1736291179062,3.42400752,3382.1,3380.6,0.7871]
[1736291179316,2.95701,3381.8,3380.7,2.95794]
[1736291179472,2.95701,3381.8,3380.8,0.5575]
[1736291179623,0.34240075,3382.0,3380.8,0.5575]
[1736291179825,2.95695,3381.9,3381.0,0.0075]
[1736291180745,2.95695,3381.9,3380.7,0.55]
[1736291180746,2.95703,3381.8,3380.8,0.0075]
[1736291180939,3.62937383,3381.8,3380.8,0.0075]
[1736291181483,3.62937383,3381.8,3380.8,2.96536]
[1736291182123,0.67234383,3381.8,3380.8,0.0075]
[1736291182325,2.95713,3381.7,3380.8,0.0075]
[1736291183281,0.0689319,3381.6,3380.8,0.0075]
[1736291183422,0.51582247,3381.6,3380.8,0.0075]
[1736291183629,2.95726,3381.5,3380.6,0.7871]
[1736291183828,3.0,3381.3,3380.6,0.7871]
[1736291184149,0.0689319,3381.2,3380.7,0.0075]
[1736291184333,0.60263619,3381.1,3380.7,0.0075]
[1736291184735,0.0689319,3381.0,3380.7,0.0075]
[1736291185331,0.0689319,3381.0,3380.6,0.7871]
[1736291185535,0.0689319,3381.0,3380.3,0.7777]
[1736291185536,3.0266719,3381.0,3380.3,0.7777]
[1736291186168,0.0689319,3381.0,3380.4,0.5575]
[1736291186379,0.0689319,3381.0,3380.5,0.0075]
[1736291186687,5.95755,3381.2,3380.3,0.7777]
[1736291186977,0.0689319,3380.9,3380.4,0.0075]
[1736291187166,2.95762,3381.1,3380.4,0.0075]
[1736291187331,0.0689319,3380.8,3380.4,0.0075]
[1736291187536,2.95761,3381.2,3380.4,0.0075]
[1736291187732,0.0689319,3380.7,3380.4,0.0075]
[1736291187961,2.95772,3381.0,3380.4,0.0075]
[1736291188146,0.0689319,3380.6,3380.4,0.0075]
[1736291188357,3.0,3381.5,3380.4,0.0075]
[1736291188551,2.9577,3381.0,3380.4,0.0075]
[1736291189307,0.0689319,3380.9,3380.4,0.0075]
[1736291190164,2.95723,3381.6,3380.8,0.8175]
[1736291190624,3.18183,3382.0,3381.0,0.0075]
[1736291191090,0.225,3382.0,3381.0,0.0075]
[1736291191284,2.95659,3382.3,3381.2,0.7934]
[1736291191583,0.225,3382.3,3381.2,3.75089]
[1736291191786,2.95676,3382.1,3381.2,0.7934]
[1736291192008,2.95691,3382.0,3381.2,0.7934]
[1736291192144,3.74218352,3382.1,3381.2,0.7934]
[1736291192339,2.95683,3382.0,3381.2,0.7934]
[1736291192566,3.0,3381.6,3380.8,0.8321]
[1736291192889,3.0,3381.6,3380.9,0.0075]
[1736291193048,0.64240075,3381.5,3380.9,0.0075]
[1736291193250,3.74314,3382.0,3380.9,2.96522]
[1736291193455,2.95693,3381.9,3381.1,0.0075]
[1736291194443,3.0,3381.8,3381.1,0.0075]
[1736291194595,3.0,3382.0,3381.1,0.0075]
[1736291194771,5.95685,3382.0,3381.0,0.5575]
[1736291194970,7.02788335,3382.0,3381.0,0.0075]
[1736291195849,4.07103335,3382.0,3380.8,0.8321]
[1736291196055,3.0,3381.9,3380.8,0.8321]
[1736291196386,2.95745,3381.3,3380.9,0.0075]
[1736291196603,2.95761,3381.2,3380.3,0.7835]
[1736291196785,2.95772,3381.0,3380.3,0.7835]
[1736291196985,2.95772,3381.0,3380.4,0.0075]
[1736291197155,0.373311,3381.2,3380.4,0.0075]
[1736291197353,3.0,3381.0,3380.4,0.0075]
[1736291198073,3.0,3381.0,3380.6,0.0075]
[1736291198291,0.06823288,3380.9,3380.6,0.0075]
[1736291198492,0.06823288,3380.9,3380.4,0.0075]
[1736291198900,0.06823288,3380.9,3380.8,0.0075]
[1736291199069,2.95772,3381.0,3380.8,0.0075]
[1736291199513,0.06823288,3380.9,3380.8,0.0075]
[1736291199884,3.0,3381.1,3380.8,0.0075]
[1736291200101,0.06793943,3381.0,3380.8,0.0075]
[1736291201226,0.06793943,3381.0,3380.9,0.8273]
[1736291201720,1.23141455,3381.9,3381.4,0.8273]
[1736291202228,0.0655252,3381.8,3381.4,0.8273]
[1736291202803,3.227,3382.0,3381.4,0.8273]
[1736291202992,0.0655252,3381.7,3381.4,0.8273]
[1736291203200,3.227,3382.0,3381.3,0.0075]
[1736291203385,0.0655252,3381.6,3381.3,0.03707071]
[1736291203631,1.23141455,3382.6,3381.8,2.95697]
[1736291203833,2.28008594,3382.6,3381.7,0.55]
[1736291204042,0.0655252,3382.5,3381.8,0.0075]
[1736291204177,0.0655252,3382.5,3382.0,0.0075]
[1736291204675,0.0655252,3382.5,3382.4,4.33378]
[1736291205119,1.23141455,3383.0,3382.4,41.96754444]
[1736291205325,1.23141455,3383.0,3382.9,3.51354]
[1736291205532,1.23141455,3383.0,3382.9,4.33334]
[1736291205897,1.23141455,3383.0,3382.9,42.33334]
[1736291206097,1.84712183,3383.1,3382.9,42.33334]
[1736291206098,0.98498548,3383.3,3383.0,7.33325]
[1736291206294,1.84989654,3384.7,3383.6,0.8198]
[1736291206533,1.84989654,3384.7,3384.2,0.0075]
[1736291207038,1.84989654,3384.7,3384.4,0.0075]
[1736291207386,4.80437654,3384.7,3384.4,0.0075]
[1736291207696,4.52809053,3384.6,3384.4,35.0]
[1736291208009,4.52809053,3384.6,3383.0,3.0]
[1736291208010,2.95481,3384.4,3383.5,0.0075]
[1736291208215,2.9549,3384.3,3383.5,0.0075]
[1736291208412,2.9549,3384.3,3383.7,0.0075]
[1736291209340,2.95498,3384.2,3383.5,35.0075]
[1736291209660,2.95476,3384.4,3383.5,0.0075]
[1736291209862,0.55477222,3384.3,3383.5,0.0370517]
[1736291210064,2.95456,3384.6,3383.7,0.0075]
[1736291210356,2.95456,3384.6,3383.7,0.03705038]
[1736291210523,3.801,3384.9,3383.5,0.03705051]
[1736291210731,0.801,3384.9,3383.5,0.0075]
[1736291210935,2.95472,3384.5,3383.7,0.0075]
[1736291211127,2.95472,3384.5,3383.7,0.03705086]
[1736291211440,2.95472,3384.5,3383.5,0.5575]
[1736291211847,3.801,3384.9,3383.9,0.0075]
[1736291212169,2.95354,3385.8,3384.4,0.8198]
[1736291212170,2.95388,3385.4,3384.4,0.8198]
[1736291212309,0.801,3386.1,3384.8,0.0075]
[1736291212511,0.71781175,3386.0,3385.0,0.0075]
[1736291212817,3.0,3385.8,3385.2,0.0075]
[1736291213216,3.0,3385.8,3384.9,0.8198]
[1736291213217,3.0,3385.8,3385.0,0.0075]
[1736291213426,0.06518302,3385.7,3385.2,0.0075]
[1736291213624,0.06518302,3385.7,3385.4,0.0075]
[1736291213859,2.95341,3386.0,3385.4,0.0075]
[1736291214067,0.71784175,3385.9,3385.4,0.0075]
[1736291214373,3.0,3385.8,3385.0,0.0075]
[1736291214586,3.18003,3386.4,3385.0,0.0075]
[1736291214587,0.801,3386.9,3385.8,0.0075]
[1736291214981,2.95275,3386.7,3385.8,0.0075]
[1736291215317,0.06459162,3386.6,3385.8,0.0075]
[1736291215522,2.95319,3386.2,3385.8,0.0075]
[1736291215887,0.295319,3386.1,3385.8,0.0075]
[1736291216271,0.06459162,3386.0,3385.8,0.0075]
[1736291216825,0.06459162,3386.0,3385.6,0.0075]
[1736291217326,2.95316,3386.2,3385.4,0.0075]
[1736291217526,0.06506572,3385.9,3385.4,0.0075]
[1736291217775,2.95316,3386.2,3385.4,0.0075]
[1736291218065,0.06506572,3385.8,3385.6,0.0075]
[1736291218268,0.93768175,3386.4,3384.9,0.7572]
[1736291218269,0.7951,3386.1,3384.9,0.7572]
[1736291218567,0.78229547,3386.0,3385.1,0.0075]
[1736291218769,2.95346,3385.9,3385.1,35.0075]
[1736291218923,2.95362,3385.7,3385.1,0.0075]
[1736291219117,2.95362,3385.7,3384.9,0.7572]
[1736291219431,0.06486748,3385.8,3384.4,0.83]
[1736291219432,0.7586,3385.6,3384.4,0.83]
[1736291219660,3.0,3385.5,3384.4,0.83]
[1736291219973,2.95406,3385.2,3384.4,0.83]
[1736291220339,2.95406,3385.2,3384.6,0.0075]
[1736291220533,0.06474679,3385.1,3384.6,0.0075]
[1736291220864,3.01888679,3385.1,3384.4,0.83]
[1736291221269,3.01888679,3385.1,3384.6,0.0075]
[1736291221574,0.43440734,3385.1,3384.6,0.0075]
[1736291221870,0.43440734,3385.1,3384.5,0.0075]
[1736291222196,0.06474679,3385.1,3384.5,0.0075]
[1736291222341,3.01892679,3385.1,3384.5,0.0075]
[1736291222939,0.06474679,3385.1,3383.9,0.8264]
[1736291223139,2.95465,3384.5,3383.9,0.8264]
[1736291223372,0.7704,3384.7,3383.5,0.8264]
[1736291223540,3.01919504,3384.4,3383.5,0.8264]
[1736291223728,0.44110561,3384.6,3383.6,0.58705011]
[1736291223934,3.72452,3385.1,3384.1,0.0075]
[1736291224231,0.06406561,3384.5,3384.1,0.0075]
[1736291224429,2.95441,3384.8,3383.8,0.02954863]
[1736291224624,0.06406561,3384.4,3383.9,0.0075]
[1736291224830,5.95435,3384.9,3383.9,0.0075]
[1736291225025,0.06406561,3384.3,3383.7,0.8264]
[1736291225241,2.95494,3384.2,3383.7,0.8264]
[1736291225441,3.01900561,3384.2,3383.8,0.0075]
[1736291225639,0.06406561,3384.2,3382.8,0.60218384]
[1736291225844,3.0,3384.1,3382.9,0.8059]
[1736291226056,2.95525,3383.9,3383.0,0.02955679]
[1736291226254,2.95521,3383.9,3383.0,0.02955679]
[1736291226458,2.95543,3383.6,3382.9,0.8059]
[1736291227071,0.0631256,3383.5,3383.0,0.0075]
[1736291227275,0.0631256,3383.5,3382.9,0.8059]
[1736291227678,2.95541,3383.7,3382.9,0.8059]
[1736291227679,2.95541,3383.7,3383.0,0.0075]
[1736291227974,2.95552,3383.5,3383.0,0.0075]
[1736291228275,0.0631256,3383.6,3383.0,0.03705682]
[1736291228496,3.0,3383.8,3383.0,0.03705682]
[1736291228703,0.0631256,3383.5,3383.0,0.03705682]
[1736291228858,0.0631256,3383.4,3383.0,0.03705682]
[1736291229065,2.95527,3383.8,3383.0,0.03705682]
[1736291229461,0.0631256,3383.7,3383.0,0.03705682]
[1736291229669,2.95534,3383.7,3383.0,0.03705682]
[1736291230008,2.95551,3383.5,3382.9,0.8059]
[1736291230163,2.9556,3383.4,3382.9,0.8059]
[1736291230511,2.95546,3383.6,3383.0,0.0075]
[1736291231060,3.01817381,3383.5,3383.0,0.0075]
[1736291231291,0.06263381,3383.5,3382.6,0.7898]
[1736291231472,3.0,3384.1,3382.8,0.5575]
[1736291231674,0.06263381,3384.0,3383.0,2.96344]
[1736291231879,0.06263381,3384.0,3383.2,0.0075]
[1736291232076,2.95517,3383.9,3383.2,0.0075]
[1736291232304,2.95545,3383.6,3383.0,0.0075]
[1736291232508,3.42400752,3384.2,3383.0,0.03705625]
[1736291232819,2.95481,3384.4,3383.2,0.8126]
[1736291232820,2.95509,3384.0,3383.2,0.8126]
[1736291233182,2.95527,3383.8,3383.2,0.8126]
[1736291233513,2.95537,3383.7,3383.2,0.8126]
[1736291233712,1.08906634,3384.0,3382.5,3.0]
[1736291233713,0.06261655,3383.6,3382.5,3.0]
[1736291233864,2.95544,3383.6,3382.6,0.81715793]
[1736291234064,0.06261655,3383.5,3382.7,0.0075]
[1736291234273,0.36442221,3383.5,3382.6,0.7876]
[1736291234466,2.95585,3383.2,3382.6,0.7876]
[1736291234667,0.06279776,3383.1,3382.6,0.7876]
[1736291234972,0.06279776,3383.1,3382.1,0.7974]
[1736291234973,2.95599,3383.0,3382.1,0.7974]
[1736291235404,6.37964752,3383.4,3382.1,0.7974]
[1736291235405,0.0625993,3382.9,3382.1,0.7974]
[1736291235563,0.0625993,3382.9,3382.1,3.7541]
[1736291235914,0.8094,3383.2,3382.1,3.7541]
[1736291235915,0.06256478,3382.8,3382.2,0.0075]
[1736291236064,2.95593,3383.1,3382.2,2.96413]
[1736291236267,0.06256478,3383.0,3382.2,2.96413]
[1736291236770,0.8094,3383.2,3382.4,0.0075]
[1736291237111,0.06066624,3382.9,3382.4,0.0075]
[1736291237314,0.8094,3383.2,3382.4,0.0075]
[1736291237517,3.76518,3383.2,3382.3,0.0075]
[1736291237687,3.0165676,3383.1,3382.3,0.0075]
[1736291237881,2.95599,3383.0,3382.1,0.7974]
[1736291238074,0.060813,3382.9,3382.3,0.0075]
[1736291238270,2.9558,3383.2,3382.3,0.0075]
[1736291238466,0.060813,3383.1,3382.3,0.0075]
[1736291239023,3.016683,3383.1,3382.4,0.0075]
[1736291239321,2.95596,3383.0,3382.2,0.0075]
[1736291239525,2.95608,3382.9,3382.2,0.0075]
[1736291239723,2.95635,3382.6,3382.1,0.7974]
[1736291240024,2.95641,3382.5,3381.7,0.7771]
[1736291240314,3.017223,3382.5,3381.7,0.80666738]
[1736291240939,3.017223,3382.5,3381.8,0.0075]
[1736291241075,0.060813,3382.5,3381.8,0.0075]
[1736291241416,2.9563,3382.6,3381.8,0.0075]
[1736291241625,0.06064034,3382.4,3381.8,0.0075]
[1736291241773,2.95654,3382.4,3381.8,0.0075]
[1736291241974,0.06064034,3382.3,3381.8,0.0075]
[1736291243313,2.9563,3382.6,3381.8,0.0075]
[1736291243514,0.0573956,3382.5,3382.0,0.0075]
[1736291243668,3.0,3382.9,3382.2,0.0075]
[1736291243866,0.7549,3383.3,3382.2,0.0075]
[1736291243867,2.95625,3382.7,3382.2,0.0075]
[1736291244110,3.0,3383.0,3382.2,0.0075]
[1736291244425,0.0573956,3382.9,3382.2,0.0075]
[1736291245517,2.95629,3382.7,3382.2,0.0075]
[1736291245718,3.47057132,3383.2,3382.2,0.0075]
[1736291245882,3.47057132,3383.2,3382.2,2.99363378]
[1736291245883,0.05775855,3383.1,3382.2,2.99363378]
[1736291246307,3.71067,3383.3,3382.2,0.03706378]
[1736291246308,0.7549,3383.3,3382.2,0.03706378]
[1736291246502,2.95539,3383.7,3382.8,0.0075]
[1736291246503,0.05775855,3383.2,3382.8,0.0075]
[1736291246724,0.225,3384.1,3382.8,0.0075]
[1736291246725,3.98354,3384.1,3382.8,0.0075]
[1736291246871,2.95569,3383.3,3382.4,0.7871]
[1736291247070,2.95596,3383.0,3382.5,0.0075]
[1736291247343,0.05827704,3382.9,3382.5,0.0075]
[1736291248122,3.01439704,3382.9,3382.5,0.0075]
[1736291248450,3.31583674,3382.9,3382.5,0.0075]
[1736291249355,0.05827704,3382.9,3382.5,0.0075]
[1736291249855,0.225,3383.5,3382.5,0.0075]
[1736291249856,2.95553,3383.5,3382.5,0.0075]
[1736291250026,2.95553,3383.5,3382.4,0.81666134]
[1736291250027,2.95536,3383.7,3382.8,2.96362]
[1736291250227,2.95536,3383.7,3383.0,0.0075]
[1736291250428,2.95529,3383.8,3383.0,0.0075]
[1736291250636,3.68764708,3383.8,3383.0,0.0075]
[1736291250949,3.0,3383.7,3383.0,0.0075]
[1736291251174,5.95536,3383.7,3383.0,0.0075]
[1736291251385,3.0,3383.7,3383.0,0.0075]
[1736291251535,3.0,3383.7,3382.4,0.7871]
[1736291251738,0.79796646,3383.6,3382.4,0.7871]
[1736291251931,5.95551,3383.5,3382.5,0.0075]
[1736291252168,2.95583,3383.2,3382.5,0.0075]
[1736291252574,2.95606,3382.9,3382.5,0.0075]
[1736291253082,2.9563,3382.7,3382.4,0.7871]
[1736291253281,0.295606,3382.9,3381.8,0.7964]
[1736291253788,2.95668,3382.2,3381.4,0.7506]
[1736291253951,3.0,3382.3,3381.6,0.0075]
[1736291254839,0.295606,3382.9,3381.8,0.0075]
[1736291255039,2.95631,3382.6,3381.8,0.0075]
[1736291255235,3.0,3382.5,3381.8,0.0075]
[1736291255466,0.74987435,3382.8,3381.6,0.0075]
[1736291255790,2.95669,3382.2,3381.6,0.0075]
[1736291256286,2.95669,3382.2,3381.5,0.0075]
[1736291256490,3.0,3382.3,3381.5,0.0075]
[1736291256651,0.74987435,3382.8,3381.5,0.58706938]
[1736291256856,4.00209,3383.1,3382.2,0.0075]
[1736291257071,3.651825,3383.0,3382.2,0.0075]
[1736291257270,3.0,3382.9,3382.2,0.0075]
[1736291257584,2.95613,3382.8,3382.2,0.0075]
[1736291257751,2.9563,3382.7,3382.2,0.0075]
[1736291258340,3.01367832,3382.6,3382.2,0.0075]
[1736291258611,2.95639,3382.5,3382.2,0.0075]
[1736291258755,2.95673,3382.2,3381.6,0.8194]
[1736291258958,2.95673,3382.2,3381.7,0.0075]
[1736291259177,2.95649,3382.4,3381.7,0.0075]
[1736291259400,0.05743882,3382.1,3381.7,0.0075]
[1736291259551,2.95649,3382.4,3381.7,0.0075]
[1736291259857,0.05743882,3382.0,3381.7,0.0075]
[1736291260058,2.95657,3382.3,3381.7,0.0075]
[1736291260288,0.05743882,3381.9,3381.7,0.0075]
[1736291260484,2.95657,3382.3,3381.7,0.0075]
[1736291260669,0.0574561,3381.8,3381.7,0.0075]
[1736291260871,2.95657,3382.3,3381.7,0.0075]
[1736291261383,0.0574561,3382.2,3381.7,0.0075]
[1736291263902,0.0574561,3382.2,3381.7,0.0370692]
[1736291264252,3.0,3382.9,3381.7,2.9941392]
[1736291264456,0.05723139,3382.1,3381.7,2.9941392]
[1736291264686,2.95632,3382.6,3381.7,2.9941392]
[1736291264867,0.05723139,3382.0,3381.7,2.9941392]
[1736291265070,2.95632,3382.6,3381.7,2.9941392]
[1736291265284,0.05723139,3381.9,3381.7,2.9941392]
[1736291265602,2.95632,3382.6,3381.7,2.9941392]
[1736291265603,0.05730053,3381.8,3381.7,2.9941392]
[1736291265786,0.05730053,3381.8,3381.7,0.0370692]
[1736291265993,3.71699425,3382.9,3381.7,0.0075]
[1736291266203,3.71699425,3382.9,3381.6,0.8194]
[1736291266204,0.05730053,3381.8,3381.6,0.8194]
[1736291266516,2.9568,3382.1,3381.6,0.8194]
[1736291266819,2.9568,3382.1,3381.7,0.0075]
[1736291267027,0.05731782,3382.0,3381.7,0.0075]
[1736291267821,2.95696,3381.9,3381.2,0.7846]
[1736291267988,2.95696,3381.9,3381.3,0.0075]
[1736291268191,2.95687,3382.0,3381.3,0.0075]
[1736291268386,0.05731782,3381.8,3381.3,0.0075]
[1736291268590,2.95687,3382.0,3381.3,0.0075]
[1736291268805,0.05731782,3381.7,3381.3,0.0075]
[1736291269020,2.95687,3382.0,3381.3,0.0075]
[1736291269192,0.05731782,3381.6,3381.3,0.0075]
[1736291269399,3.252557,3382.0,3381.3,0.0075]
[1736291269581,0.05731782,3381.9,3381.3,0.0075]
[1736291271009,3.42400752,3381.8,3380.6,4.18353703]
[1736291271217,2.95724,3381.6,3381.0,0.7728]
[1736291271562,0.05652256,3381.5,3381.0,0.7728]
[1736291272060,0.05652256,3381.5,3381.1,0.0075]
[1736291272218,0.05652256,3381.5,3381.1,0.03707582]
[1736291272418,2.86724344,3382.0,3381.1,0.03707582]
[1736291272612,0.05652256,3381.4,3381.1,0.03707582]
[1736291272956,0.05625453,3381.3,3381.1,0.0075]
[1736291273156,2.95708,3381.8,3381.1,0.0075]
[1736291273360,3.01339453,3381.7,3381.1,0.0075]
[1736291273562,0.05625453,3381.7,3381.1,0.0075]
[1736291273781,2.92349797,3381.7,3381.1,0.0075]
[1736291273930,2.95743,3381.4,3380.6,1.99829703]
[1736291274136,2.92331637,3381.3,3380.7,0.0075]
[1736291274372,0.05607293,3381.3,3380.7,0.0075]
[1736291274546,0.05607293,3381.3,3380.9,2.96523]
[1736291274749,2.86724344,3381.9,3380.9,2.96523]
[1736291274750,5.82416344,3381.9,3380.9,2.96523]
[1736291274953,3.05607293,3381.8,3381.1,0.0075]